[Event "XVI Memorial Lezcano Montalvo 2024"]
[Site "Gran Canaria"]
[Date "2024.03.28"]
[Round "6.6"]
[White "Garcia Blanco, Omar"]
[Black "Lianes Garcia, Marcos"]
[Result "0-1"]
[ECO "B12"]
[WhiteElo "2377"]
[BlackElo "2398"]
[Annotator "TA"]
[PlyCount "108"]
[EventDate "2024.03.23"]
[EventType "swiss"]
[EventCountry "ESP"]
[SourceTitle "playchess.com"]
[Source "ChessBase"]
[SourceQuality "1"]
[TimeControl "5400+30"]

{[%evp 25,108,60,83,70,129,81,98,97,95,85,164,110,104,100,98,62,54,50,68,69,37,68,54,43,48,44,61,34,41,43,70,45,45,0,306,-226,-202,-287,-291,-309,-296,-326,-293,-311,-330,-375,-324,-404,-362,-406,-404,-413,-409,-402,-402,-410,-401,-435,-435,-435,-435,-557,-432,-432,-432,-432,-425,-421,0,-435,0,-583,-576,-572,-561,-6315,-6315,-5293,-1178,-962,-897,-29990,-29991,-29992,-29988]} 1. e4 {[%emt 0:01:19]} c6 {[%emt 0:00:46]} 2. d4 {[%emt 0:00:08]} d5 {[%emt 0:00:04]} 3. e5 {[%emt 0:00:15]} Bf5 {[%emt 0:03:26]} 4. h4 {[%emt 0:00:09]} h5 {[%emt 0:00:38]} 5. Bd3 {[%emt 0:00:13]} Bxd3 {[%emt 0:01:14]} 6. Qxd3 {[%emt 0:00:10]} e6 {[%emt 0:00:16]} 7. Bg5 {[%emt 0:00:43] B12: Caro-Kann: Advance Variation.} Qa5+ {[%emt 0:01:43]} 8. Nd2 {[%emt 0:00:08]} Qa6 {[%emt 0:02:40]} 9. c4 {[%emt 0:00:13]} Nh6 {[%emt 0:02:21]} 10. Ngf3 {[%emt 0:01:56]} Nf5 {[%emt 0:04:21]} 11. O-O {[%emt 0:04:14]} Nd7 {[%emt 0:03:53]} 12. b3 {[%emt 0:01:42]} Be7 {[%emt 0:15:00]} 13. Bxe7 {[%emt 0:03:18]} Kxe7 {[%emt 0:03:58]} 14. a4 {[%emt 0:04:45]} (14. Rfd1 {simplifies} Kf8 15. a4 g6 16. Nf1) 14... c5 $146 {[%emt 0:10:36]} (14... Rhd8 $14) ({Predecessor:} 14... Nb6 15. a5 Nd7 16. Qc3 b5 17. axb6 Qxb6 18. c5 Qb7 19. Ra5 Rhb8 20. Rfa1 Qb4 {1-0 Taichman,O (2293)-Chernov,A (2314) Titled Tuesday intern op 07th Sept blitz 2021 (2)}) 15. Qb1 {[%emt 0:06:19]} (15. b4 $142 {Hoping for b5.} dxc4 16. Qa3 (16. Nxc4 cxb4 17. Qb3 Rhc8 $16)) 15... dxc4 $16 {[%emt 0:04:13]} 16. Nxc4 {[%emt 0:02:15]} cxd4 {[%emt 0:02:57]} 17. Qc1 {[%emt 0:01:17]} Nb6 {[%emt 0:18:51]} (17... Kf8 $16) 18. Nd6 $1 $18 {[%emt 0:04:47]} Nxd6 {[%emt 0:00:35]} 19. exd6+ {[%emt 0:00:07]} Kf8 {[%emt 0:00:13]} 20. Nxd4 {[%emt 0:00:41]} Nd5 {[%emt 0:01:09]} 21. Nb5 {[%emt 0:16:39]} Qb6 {[%emt 0:01:45]} 22. Qa3 {[%emt 0:02:42]} Kg8 {[%emt 0:01:00]} 23. Rac1 {[%emt 0:07:03]} Rd8 {[%emt 0:01:20]} 24. Rc5 $1 {[%emt 0:01:07]} Kh7 {[%emt 0:06:20]} 25. b4 {[%emt 0:04:40]} Rd7 $1 {[%emt 0:00:13]} 26. Qf3 {[%emt 0:02:50]} g6 {[%emt 0:03:30]} 27. Rfc1 {[%emt 0:05:10]} Kg7 {[%emt 0:04:19]} 28. Qe4 {[%emt 0:21:42]} Qd8 {[%emt 0:01:23]} 29. Nxa7 {[%emt 0:04:21]} (29. Rc7 $5 a6 (29... Nxc7 $2 30. dxc7 Qf6 31. Nxa7 $18) 30. Qe5+ Qf6 31. Qxf6+ Nxf6 32. Rxd7 Nxd7 33. Nd4 $16 (33. Rc7 axb5 34. Rxd7 bxa4 $11)) 29... b6 $2 {[%emt 0:01:44][%mdl 8192] [#]} (29... Nf6 $11 {and Black has nothing to worry.} 30. Qe1 Rxd6) 30. Rc7 $4 {[%emt 0:02:20][%mdl 8192]} (30. Rc8 $1 $18 {[%mdl 512]} Qf6 31. Rxh8 Kxh8 32. Nb5) 30... Nxc7 $19 {[%emt 0:02:19]} 31. dxc7 {[%emt 0:01:54]} (31. Nc6 $142 Qa8 32. dxc7) 31... Rd1+ $19 {[%emt 0:00:05]} 32. Rxd1 {[%emt 0:00:20]} Qxd1+ {[%emt 0:00:01]} 33. Kh2 {[%emt 0:00:06]} Qd6+ {[%emt 0:00:03]} (33... Qxa4 $2 {too greedy.} 34. Qd4+ (34. c8=R Rxc8 35. Qd4+ e5 $18) (34. c8=N Qa1 $11) 34... e5 35. Qxe5+ (35. c8=Q $2 exd4 36. Qc7 d3 $19) 35... Kh7 36. Qxh8+ (36. c8=R Rxc8 37. Nxc8 Qxb4 $18) (36. c8=N Qxb4 37. Qf6 Qc4 $16) 36... Kxh8 37. c8=Q+ $18 (37. c8=R+ $2 Kg7 $19)) 34. g3 {[%emt 0:00:05]} Qxc7 {[%emt 0:00:05]} 35. Nb5 {[%emt 0:00:05]} Qd7 {[%emt 0:00:50]} 36. Qe3 {[%emt 0:00:17]} Qc6 {[%emt 0:01:06]} 37. Qd4+ {[%emt 0:01:43]} f6 {[%emt 0:01:14]} 38. Nc3 {[%emt 0:00:51]} e5 {[%emt 0:00:28]} 39. Qd3 {[%emt 0:00:45]} Rc8 {[%emt 0:01:19]} 40. Ne4 {[%emt 0:00:10]} Rc7 {[%emt 0:00:11]} ({Not} 40... Qxa4 41. Qd6 Rf8 42. Ng5 fxg5 43. Qxe5+ Kg8 44. Qe6+ Rf7 45. Qxg6+ Kf8 46. Qxb6 $19) 41. a5 {[%emt 0:00:20]} bxa5 {[%emt 0:00:12]} 42. bxa5 {[%emt 0:00:05]} Rd7 {[%emt 0:00:11]} 43. Qb1 {[%emt 0:01:33]} Ra7 {[%emt 0:00:49]} 44. Qb4 {[%emt 0:00:26]} Rb7 {[%emt 0:00:31]} 45. Qe1 {[%emt 0:00:17]} Rb5 {[%emt 0:00:46]} 46. Qd2 {[%emt 0:00:41]} Rb7 $2 {[%emt 0:00:54]} (46... Qxe4 $2 {perishes.} 47. Qd7+ Kh6 48. Qxb5 $18) (46... Rb8 $19 47. Nc3 Rb7) 47. Qd3 $2 {[%emt 0:00:37][%mdl 8192]} (47. Qe1 $1 $11 Rb8 48. Kh3) 47... Rd7 {[%emt 0:00:28]} 48. Qb1 $1 {[%emt 0:00:06]} Rd4 {[%emt 0:00:17]} 49. f3 {[%emt 0:00:11]} Ra4 {[%emt 0:00:48]} 50. Qe1 {[%emt 0:01:13]} Ra2+ {[%emt 0:00:08]} 51. Kg1 {[%emt 0:00:22]} Qc2 {[%emt 0:00:08]} (51... Qa4 $142 52. Nc3 Qd4+ (52... Qxa5 $2 53. Qe3 $19) 53. Kh1 Rd2 (53... Rxa5 $2 54. Kg2 $19)) 52. Nf2 $19 {[%emt 0:00:06]} Qc5 {[%emt 0:00:12]} 53. f4 {[%emt 0:00:53]} e4 {[%emt 0:00:35]} 54. a6 {[%emt 0:00:39]} Qd4 {[%emt 0:00:15]} 0-1

[Event "XVI Memorial Lezcano Montalvo 2024"]
[Site "Gran Canaria"]
[Date "2024.03.28"]
[Round "6.7"]
[White "Perez Guerra, Raul"]
[Black "Akhvlediani, Irakli"]
[Result "0-1"]
[ECO "B33"]
[WhiteElo "2250"]
[BlackElo "2356"]
[Annotator "RC"]
[PlyCount "130"]
[EventDate "2024.03.23"]
[EventType "swiss"]
[EventCountry "ESP"]
[SourceTitle "playchess.com"]
[Source "ChessBase"]
[SourceQuality "1"]
[TimeControl "5400+30"]

1. e4 {[%emt 0:00:03]} c5 {[%emt 0:00:05]} 2. Nf3 {[%emt 0:00:30]} Nc6 {[%emt 0:00:51]} 3. d4 {[%emt 0:00:12]} cxd4 {[%emt 0:00:06]} 4. Nxd4 {[%emt 0:00:03]} Nf6 {[%emt 0:00:09]} 5. Nc3 {[%emt 0:00:23]} e5 {[%emt 0:00:05]} 6. Ndb5 {[%emt 0:00:34]} d6 {[%emt 0:00:07]} 7. Bg5 {[%emt 0:00:41]} a6 {[%emt 0:00:05]} 8. Na3 {[%emt 0:00:13]} b5 {[%emt 0:00:05]} 9. Nd5 {[%emt 0:01:31]} Be7 {[%emt 0:00:06]} 10. Bxf6 {[%emt 0:00:06]} Bxf6 {[%emt 0:00:04]} 11. c4 {[%emt 0:00:26]} b4 {[%emt 0:00:19]} 12. Nc2 {[%emt 0:00:04]} a5 {[%emt 0:00:44]} 13. Qf3 {[%emt 0:00:29]} Be6 {[%emt 0:08:37]} 14. Rd1 {[%emt 0:02:15]} O-O {[%emt 0:26:22]} 15. Nxf6+ {[%emt 0:09:51]} Qxf6 {[%emt 0:00:06]} 16. Qxf6 {[%emt 0:00:13]} gxf6 {[%emt 0:00:05]} 17. Rxd6 {[%emt 0:00:05]} Rfc8 {[%emt 0:12:49]} 18. Be2 {[%emt 0:05:55]} b3 {[%emt 0:32:35]} 19. axb3 {[%emt 0:00:04]} Rab8 {[%emt 0:00:02]} 20. Kd2 {[%emt 0:05:34]} Rxb3 {[%emt 0:00:58]} 21. Kc1 {[%emt 0:01:46]} a4 {[%emt 0:03:02]} 22. Rhd1 {[%emt 0:15:23]} Kg7 {[%emt 0:00:04]} 23. R1d2 {[%emt 0:10:18]} Na5 {[%emt 0:00:42]} 24. Ne3 {[%emt 0:10:35]} Nb7 {[%emt 0:02:53]} 25. Rxe6 {[%emt 0:10:57]} fxe6 {[%emt 0:00:07]} 26. Rd7+ {[%emt 0:00:00]} Kh8 {[%emt 0:02:55]} 27. Ng4 {[%emt 0:03:00]} Nc5 {[%emt 0:00:05]} 28. Ra7 {[%emt 0:00:28]} Rb7 {[%emt 0:01:00]} 29. Rxb7 {[%emt 0:00:42]} Nxb7 {[%emt 0:00:01]} 30. Nxf6 {[%emt 0:00:07]} Nd6 {[%emt 0:00:25]} 31. f3 {[%emt 0:04:20]} Nxc4 {[%emt 0:00:05]} 32. Bxc4 {[%emt 0:00:05]} Rxc4+ {[%emt 0:00:03]} 33. Kd2 {[%emt 0:00:02]} Kg7 {[%emt 0:01:59]} 34. Ng4 {[%emt 0:00:02]} Rc5 {[%emt 0:00:05]} 35. Kd3 {[%emt 0:08:07]} h5 {[%emt 0:01:20]} 36. Ne3 {[%emt 0:00:02]} Rb5 {[%emt 0:01:23]} 37. Kc2 {[%emt 0:00:55]} Kf6 {[%emt 0:01:09]} 38. h4 {[%emt 0:00:03]} Rb8 {[%emt 0:00:38]} 39. Nc4 {[%emt 0:02:54]} Rb3 {[%emt 0:00:28]} 40. Na5 {[%emt 0:00:49]} Re3 {[%emt 0:01:25]} 41. Kd1 {[%emt 0:00:49]} Rd3+ {[%emt 0:00:38]} 42. Kc2 {[%emt 0:02:19]} Rd8 {[%emt 0:01:28]} 43. Nc4 {[%emt 0:00:24]} Rc8 {[%emt 0:00:33]} 44. Kc3 {[%emt 0:00:46]} Rb8 {[%emt 0:00:08]} 45. Kc2 {[%emt 0:00:51]} Rb5 {[%emt 0:03:11]} 46. Kc3 {[%emt 0:00:19]} Ke7 {[%emt 0:01:31]} 47. Kc2 {[%emt 0:04:27]} Kd7 {[%emt 0:00:03]} 48. g4 {[%emt 0:00:08]} Ke7 {[%emt 0:00:15]} 49. gxh5 {[%emt 0:01:16]} Kf8 {[%emt 0:00:38]} 50. h6 {[%emt 0:01:55]} Kg8 {[%emt 0:00:20]} 51. Ne3 {[%emt 0:00:04]} Rb3 {[%emt 0:00:16]} 52. Ng4 {[%emt 0:00:03]} Rxf3 {[%emt 0:00:04]} 53. Nxe5 {[%emt 0:00:12]} Rg3 {[%emt 0:02:33]} 54. Nd7 {[%emt 0:00:41]} a3 {[%emt 0:01:00]} 55. bxa3 {[%emt 0:00:10]} Rxa3 {[%emt 0:00:03]} 56. Nf6+ {[%emt 0:01:53]} Kf7 {[%emt 0:00:26]} 57. h7 {[%emt 0:00:11]} Kg7 {[%emt 0:00:31]} 58. Kd2 {[%emt 0:01:23]} Rf3 {[%emt 0:00:44]} 59. Nd7 {[%emt 0:01:27]} Kxh7 {[%emt 0:00:49]} 60. Ke2 {[%emt 0:00:50]} Rf7 {[%emt 0:00:26]} 61. Nc5 {[%emt 0:00:21]} e5 {[%emt 0:00:40]} 62. Nd3 {[%emt 0:00:13]} Re7 {[%emt 0:00:01]} 63. Kf3 {[%emt 0:00:55]} Kg6 {[%emt 0:00:01]} 64. Nf2 {[%emt 0:00:26]} Kh5 {[%emt 0:00:29]} 65. Kg3 {[%emt 0:00:19]} Ra7 {[%emt 0:00:32]} 0-1

[Event "XVI Memorial Lezcano Montalvo 2024"]
[Site "Gran Canaria"]
[Date "2024.03.28"]
[Round "6.8"]
[White "Omelja, Artem"]
[Black "Marrero Cardenes, Agustin"]
[Result "1-0"]
[ECO "E17"]
[WhiteElo "2438"]
[BlackElo "2093"]
[Annotator "TA"]
[PlyCount "75"]
[EventDate "2024.03.23"]
[EventType "swiss"]
[EventCountry "ESP"]
[SourceTitle "playchess.com"]
[Source "ChessBase"]
[SourceQuality "1"]
[TimeControl "5400+30"]

{[%evp 13,75,17,22,22,19,26,76,91,111,114,104,105,139,138,144,151,155,155,140,122,154,153,165,157,225,224,290,247,288,293,424,420,426,434,419,417,679,648,808,787,1039,1043,976,730,720,704,713,708,854,850,915,991,924,808,916,866,914,897,1086,1091,1223,1099,1153,960]} 1. d4 {[%emt 0:00:03]} Nf6 {[%emt 0:00:08]} 2. c4 {[%emt 0:00:07]} e6 {[%emt 0:00:05]} 3. Nf3 {[%emt 0:00:09]} b6 {[%emt 0:00:05]} 4. g3 {[%emt 0:00:08]} Bb7 {[%emt 0:00:06]} 5. Bg2 {[%emt 0:00:11]} Be7 {[%emt 0:00:09]} 6. O-O {[%emt 0:00:11]} O-O {[%emt 0:01:18]} 7. Re1 {[%emt 0:00:25]} c5 {[%emt 0:01:25] [#]} 8. d5 $1 {[%emt 0:00:57]} exd5 {[%emt 0:01:02]} 9. Nh4 {[%emt 0:00:14]} Ne8 {[%emt 0:02:48]} (9... Ne4 $11) 10. Nf5 $16 {[%emt 0:01:00] White is better.} (10. cxd5 $6 Bxh4 11. gxh4 Qxh4 $11) (10. Bxd5 Bxd5 11. Qxd5 Nc7 $15) 10... Bf6 {[%emt 0:01:42]} 11. Nc3 {[%emt 0:07:40] White has more active pieces.} ({Much less strong is} 11. Bxd5 Bxd5 12. cxd5 d6 $14) 11... Bxc3 {[%emt 0:09:18]} 12. bxc3 {[%emt 0:00:10]} Qf6 {[%emt 0:00:07] [#]} 13. Qc2 {[%emt 0:00:57]} Nc6 {[%emt 0:04:19]} 14. cxd5 {[%emt 0:05:40]} ({But not} 14. Bxd5 Nc7 $16) 14... Ne7 {[%emt 0:07:03]} 15. Nxe7+ {[%emt 0:05:00]} Qxe7 {[%emt 0:00:03]} 16. c4 {[%emt 0:02:29]} d6 {[%emt 0:02:51]} 17. e4 {[%emt 0:01:32][%cal Be2e4,Be4e5,Be5e6][%mdl 32]} Rb8 {[%emt 0:05:45]} 18. a4 {[%emt 0:00:46]} Nc7 {[%emt 0:00:18]} (18... f6 $16 {was necessary.} 19. f4 Bc8) 19. Bb2 $18 {[%emt 0:00:30]} f6 {[%emt 0:00:07]} 20. f4 {[%emt 0:00:19]} Qd7 {[%emt 0:06:18]} 21. e5 {[%emt 1:12:32]} Ne8 {[%emt 0:56:03]} (21... Qg4 $142 22. e6 (22. exd6 Ne8 $16) 22... a6) 22. e6 {[%emt 0:00:00]} Qe7 {[%emt 0:00:00]} 23. Be4 {[%emt 0:00:00]} g6 {[%emt 0:00:00][%cal Bg7g6,Bg6g5][%mdl 32]} 24. g4 {[%emt 0:00:00]} Ba6 {[%emt 0:00:00]} (24... a6 $142 25. f5 g5) 25. Ra3 {[%emt 0:00:00][%cal Ba1a3,Ba3h3,Bh3h5,Bh5h6][%mdl 32] Black is weak on the light squares. White is clearly winning.} Rb7 {[%emt 0:00:00]} 26. Rh3 {[%emt 0:00:00]} Kg7 {[%emt 0:00:00][%cal Bg8g7,Bg7f8,Bf8e7,Be7d8][%mdl 32]} 27. Ree3 {[%emt 0:00:00]} Rg8 {[%emt 0:00:00]} 28. f5 {[%emt 0:00:00]} g5 {[%emt 0:00:00]} 29. Rh5 {[%emt 0:00:00]} Kf8 {[%emt 0:00:00]} 30. Reh3 {[%emt 0:00:00]} Qg7 {[%emt 0:00:00]} 31. Rh6 {[%emt 0:00:00]} Rh8 {[%emt 0:00:00]} 32. R3h5 {[%emt 0:00:00]} Ke7 {[%emt 0:00:00]} 33. Bd3 {[%emt 0:00:00]} Kd8 {[%emt 0:00:00]} 34. h4 {[%emt 0:00:00]} gxh4 {[%emt 0:00:00]} 35. g5 {[%emt 0:00:00]} Rf8 {[%emt 0:00:00]} 36. Qh2 {[%emt 0:00:00]} Qe7 {[%emt 0:00:00]} 37. Qxh4 {[%emt 0:00:00]} fxg5 {[%emt 0:00:00]} 38. Qxg5 {[%emt 0:00:00] Weighted Error Value: White=0.06 (flawless) /Black=0.48.  Mistake:       	---       	Black=4      Inaccurate:     	---       	Black=1      OK:         	White=12    	Black=4      Best:        	White=1     	---} 1-0

[Event "XVI Memorial Lezcano Montalvo 2024"]
[Site "Gran Canaria"]
[Date "2024.03.28"]
[Round "6.9"]
[White "Yankelevich, Lev"]
[Black "Gonzalez Martinez, Miguel Angel"]
[Result "1-0"]
[ECO "A55"]
[WhiteElo "2412"]
[BlackElo "2158"]
[Annotator "TA"]
[PlyCount "79"]
[EventDate "2024.03.23"]
[EventType "swiss"]
[EventCountry "ESP"]
[SourceTitle "playchess.com"]
[Source "ChessBase"]
[SourceQuality "1"]
[TimeControl "5400+30"]

{[%evp 9,79,50,69,41,42,42,48,45,47,39,51,33,55,35,62,60,68,68,64,75,94,81,88,88,112,18,49,51,51,51,55,61,98,8,32,-20,79,70,83,75,71,33,114,106,123,79,93,93,80,79,101,85,104,104,100,100,269,266,336,266,272,273,398,341,587,569,811,781,1059,1012,2847,2491]} 1. d4 {[%emt 0:06:31]} Nf6 {[%emt 0:00:54]} 2. c4 {[%emt 0:00:09]} d6 {[%emt 0:00:08]} 3. Nc3 {[%emt 0:00:05]} Nbd7 {[%emt 0:00:19]} 4. e4 {[%emt 0:00:07]} e5 {[%emt 0:00:09]} 5. Nf3 {[%emt 0:00:03]} c6 {[%emt 0:00:53]} 6. Bd3 {[%emt 0:00:09]} Be7 {[%emt 0:00:31]} 7. O-O {[%emt 0:00:07]} O-O {[%emt 0:01:32]} 8. h3 {[%emt 0:02:27] White is slightly better.} a6 {[%emt 0:00:08]} 9. d5 {[%emt 0:01:58]} Nc5 {[%emt 0:08:28]} 10. Bc2 {[%emt 0:00:25]} cxd5 {[%emt 0:00:31]} 11. exd5 {[%emt 0:02:39]} a5 {[%emt 0:11:27]} 12. Be3 {[%emt 0:01:28]} b6 {[%emt 0:01:02]} 13. a3 {[%emt 0:01:35]} Ba6 {[%emt 0:04:52]} 14. Nd2 {[%emt 0:02:01]} Ne8 {[%emt 0:03:40]} 15. b4 {[%emt 0:00:30]} Nd7 {[%emt 0:00:25]} 16. Qb1 {[%emt 0:02:45]} g6 {[%emt 0:00:45]} 17. Bh6 {[%emt 0:00:35]} (17. Ba4 $16) 17... Ng7 {[%emt 0:00:14]} 18. Ba4 {[%emt 0:00:17]} f5 {[%emt 0:01:54]} 19. Bc6 {[%emt 0:00:31] Black must now prevent b5.} Rb8 $1 {[%emt 0:02:38]} 20. Nb5 {[%emt 0:00:27]} Nf6 {[%emt 0:04:38] [#]} 21. Nb3 {[%emt 0:07:55] White has more active pieces.} (21. bxa5 $1 $16 bxa5 22. a4) 21... f4 {[%emt 0:05:02][%cal Of4f3]} 22. f3 {[%emt 0:02:56] [#]} ({Better is} 22. Bxg7 $14 Kxg7 23. bxa5) 22... Nf5 {[%emt 0:03:23]} 23. Bxf8 $16 {[%emt 0:00:09]} Bxf8 {[%emt 0:01:46]} 24. Qd3 {[%emt 0:02:15]} Ne3 {[%emt 0:04:47]} 25. Rfe1 {[%emt 0:00:35]} Bh6 {[%emt 0:01:27]} (25... Nh5 $14) 26. Nd2 {[%emt 0:01:02]} Bc8 {[%emt 0:02:14]} 27. Nc3 {[%emt 0:00:27]} Bf5 {[%emt 0:00:52]} 28. Nde4 {[%emt 0:00:11]} Nxe4 {[%emt 0:00:47]} 29. Nxe4 {[%emt 0:01:57]} Qh4 {[%emt 0:04:24]} 30. Re2 {[%emt 0:10:44]} Rf8 {[%emt 0:04:38]} 31. bxa5 {[%emt 0:03:07]} bxa5 {[%emt 0:00:22]} 32. Rb1 {[%emt 0:00:07]} g5 $2 {[%emt 0:01:13] This move loses the game for Black.} (32... Bg7 $16 33. c5 dxc5) 33. Rb7 $18 {[%emt 0:02:08]} Kh8 {[%emt 0:13:31]} 34. Bd7 {[%emt 0:00:32] aiming for Bxf5.} Bg6 {[%emt 0:00:58]} 35. Qb1 {[%emt 0:05:40]} g4 {[%emt 0:05:04]} (35... Bxe4 {is a better defense.} 36. Qxe4 Bg7) 36. hxg4 {[%emt 0:00:32][%cal Od7f5,Bh3g4,Bg4f5,Bf5f6][%mdl 32]} (36. fxg4 Nxg2 (36... Nxc4 $2 {is the wrong capture.} 37. Rb8 $18) (36... f3 37. Rf2 $11) 37. Rb8 (37. Rxg2 f3 $15) 37... Ne3 (37... Qxh3 $2 38. Rxf8+ Bxf8 39. Qb8 $18) 38. Rxf8+ Bxf8 $11) (36. Bxg4 Bxe4 37. Qxe4 Bg7 $18) 36... Qd8 $2 {[%emt 0:00:44]} (36... Bg7 37. c5 dxc5) 37. Be6 {[%emt 0:04:27] White is clearly winning.} Nxc4 {[%emt 0:02:16] [#]} 38. Bf5 $1 {[%emt 0:00:20]} Bxf5 {[%emt 0:02:04]} (38... Bf7 39. Rd7) 39. gxf5 {[%emt 0:00:04] And now f6 would win.} Ne3 {[%emt 0:00:01]} 40. f6 {[%emt 0:00:20] Weighted Error Value: White=0.18 (very precise) /Black=0.45.  Loses game:     	---       	Black=1      Mistake:       	White=3     	Black=4      Inaccurate:     	White=2     	Black=5      OK:         	White=16    	Black=11     Best:        	White=1     	---        Strong:       	---       	Black=1      Brilliant:      	White=1     	---} 1-0

[Event "XVI Memorial Lezcano Montalvo 2024"]
[Site "Gran Canaria"]
[Date "2024.03.28"]
[Round "6.10"]
[White "Morales Camacho, Julian"]
[Black "Garcia Padron, Jose"]
[Result "0-1"]
[ECO "A06"]
[WhiteElo "2186"]
[BlackElo "2385"]
[Annotator "RC"]
[PlyCount "86"]
[EventDate "2024.03.23"]
[EventType "swiss"]
[EventCountry "ESP"]
[SourceTitle "playchess.com"]
[Source "ChessBase"]
[SourceQuality "1"]
[TimeControl "5400+30"]

1. Nf3 {[%emt 0:00:04]} d5 {[%emt 0:00:07]} 2. b3 {[%emt 0:01:06]} Bg4 {[%emt 0:00:39]} 3. Bb2 {[%emt 0:00:59]} Bxf3 {[%emt 0:00:09]} 4. exf3 {[%emt 0:01:01]} e6 {[%emt 0:00:06]} 5. d4 {[%emt 0:03:47]} Nf6 {[%emt 0:01:51]} 6. Bd3 {[%emt 0:00:43]} a5 {[%emt 0:00:37]} 7. Nd2 {[%emt 0:01:42]} a4 {[%emt 0:00:17]} 8. bxa4 {[%emt 0:01:16]} c6 {[%emt 0:06:59]} 9. c4 {[%emt 0:03:15]} Bb4 {[%emt 0:08:50]} 10. O-O {[%emt 0:02:41]} Qa5 {[%emt 0:01:05]} 11. Nb3 {[%emt 0:00:21]} Qxa4 {[%emt 0:00:12]} 12. a3 {[%emt 0:01:42]} Be7 {[%emt 0:02:43]} 13. c5 {[%emt 0:01:25]} Nbd7 {[%emt 0:00:14]} 14. Bc2 {[%emt 0:00:44]} O-O {[%emt 0:01:53]} 15. Bc3 {[%emt 0:03:48]} Qa7 {[%emt 0:00:41]} 16. a4 {[%emt 0:00:14]} b6 {[%emt 0:01:33]} 17. cxb6 {[%emt 0:03:28]} Nxb6 {[%emt 0:00:12]} 18. Qd3 {[%emt 0:06:42]} Nbd7 {[%emt 0:06:05]} 19. Rfb1 {[%emt 0:04:40]} Rfc8 {[%emt 0:00:08]} 20. Na5 {[%emt 0:08:03]} Rc7 {[%emt 0:10:55]} 21. Qd2 {[%emt 0:11:15]} c5 {[%emt 0:00:47]} 22. Rb5 {[%emt 0:01:39]} cxd4 {[%emt 0:13:28]} 23. Bxd4 {[%emt 0:00:26]} Rxc2 {[%emt 0:00:07]} 24. Qxc2 {[%emt 0:00:13]} Qxd4 {[%emt 0:00:06]} 25. Rab1 {[%emt 0:04:24]} Qf4 {[%emt 0:00:57]} 26. Qc6 {[%emt 0:00:57]} Rf8 {[%emt 0:04:21]} 27. Rb7 {[%emt 0:08:49]} Ne5 {[%emt 0:00:22]} 28. Qc1 {[%emt 0:04:22]} Qxa4 {[%emt 0:09:06]} 29. Ra1 {[%emt 0:01:52]} Qe8 {[%emt 0:15:37]} 30. Qc7 {[%emt 0:00:25]} Ned7 {[%emt 0:00:20]} 31. Nc6 {[%emt 0:00:40]} Bc5 {[%emt 0:00:14]} 32. g4 {[%emt 0:13:25]} h6 {[%emt 0:05:03]} 33. Ra5 {[%emt 0:00:04]} Be7 {[%emt 0:03:40]} 34. Rab5 {[%emt 0:00:44]} Bd8 {[%emt 0:00:24]} 35. Qd6 {[%emt 0:00:27]} e5 {[%emt 0:01:12]} 36. h4 {[%emt 0:00:54]} e4 {[%emt 0:00:42]} 37. Qf4 {[%emt 0:03:13]} exf3 {[%emt 0:00:18]} 38. Qxf3 {[%emt 0:00:55]} Ne5 {[%emt 0:00:56]} 39. Nxe5 {[%emt 0:00:06]} Qxe5 {[%emt 0:00:09]} 40. Qg3 {[%emt 0:01:27]} Qe1+ {[%emt 0:00:19]} 41. Kg2 {[%emt 0:00:29]} Ne4 {[%emt 0:00:22]} 42. Qe3 {[%emt 0:01:48]} Qxe3 {[%emt 0:00:09]} 43. fxe3 {[%emt 0:00:00]} Nd6 {[%emt 0:00:09]} 0-1